lending/lending_fUSD_20240411
["ID","MTS","AMOUNT","RATE_DAILY","PERIOD"]
[322191703,1712868655303,-4664.74,0.00027671,2]
[322191704,1712868655312,-500.97,0.00027671,2]
[322191705,1712868655322,-3180.56,0.00027671,2]
[322191706,1712868655333,-19732.11011817,0.00027671,2]
[322191707,1712868655347,-2159.83445976,0.00027671,2]
[322191709,1712868655359,-8428.29054113,0.00027671,2]
[322191710,1712868655370,-1347.0,0.00027671,2]
[322191711,1712868655387,-6345.46488094,0.00027671,2]
[322191712,1712868655396,-500.0,0.00027671,2]
[322191713,1712868655405,-875.03,0.00027671,2]
[322191714,1712868655414,-621.67810956,0.00027671,2]
[322191715,1712868655423,-500.0,0.00027671,2]
[322191716,1712868655433,-1260.67,0.00027671,2]
[322191717,1712868655443,-500.0,0.00027671,2]
[322191718,1712868655452,-500.0,0.00027671,2]
[322191719,1712868655461,-2087.38,0.00027671,2]
[322191720,1712868655470,-500.0,0.00027671,2]
[322191721,1712868655479,-500.0,0.00027671,2]
[322191722,1712868655488,-2938.19,0.00027671,2]
[322191723,1712868655497,-2041.07,0.00027671,2]
[322191724,1712868655506,-1959.61,0.00027671,2]
[322191725,1712868655515,-1889.04,0.00027671,2]
[322191726,1712868655525,-781.81,0.00027671,2]
[322191727,1712868655534,-4941.95,0.00027671,2]
[322191728,1712868655543,-937.01,0.00027671,2]
[322191729,1712868655553,-500.0,0.00027671,2]
[322191730,1712868655562,-794.52,0.00027671,2]
[322191731,1712868655571,-1709.94,0.00027671,2]
[322191732,1712868655583,-500.0,0.00027671,2]
[322191733,1712868655593,-1327.23,0.00027671,2]
[322191734,1712868655603,-2212.91,0.00027671,2]
[322191735,1712868655612,-500.0,0.00027671,2]
[322191736,1712868655621,-500.0,0.00027671,2]
[322191737,1712868655631,-5338.4,0.00027671,2]
[322191738,1712868655641,-500.0,0.00027671,2]
[322191739,1712868655650,-1413.22,0.00027671,2]
[322191740,1712868655659,-759.31,0.00027671,2]
[322191741,1712868655669,-708.08,0.00027671,2]
[322191742,1712868655678,-19653.59,0.00027671,2]
[322191743,1712868655687,-500.0,0.00027671,2]
[322191744,1712868655697,-547.58,0.00027671,2]
[322191745,1712868655707,-5699.34664525,0.00027671,2]
[322191746,1712868655724,-1113.69335475,0.00027671,2]
[322191747,1712868655733,-540.66,0.00027671,2]
[322191748,1712868655743,-500.0,0.00027671,2]
[322191749,1712868655752,-500.0,0.00027671,2]
[322191750,1712868655761,-591.29,0.00027671,2]
[322191751,1712868655771,-500.0,0.00027671,2]
[322191752,1712868655781,-765.66,0.00027671,2]
[322191753,1712868655790,-1406.46658708,0.00027671,2]
[322191754,1712868655806,-801.69227385,0.00027671,2]
[322191755,1712868655897,-488.53113907,0.00027671,2]
[322191756,1712868655906,-500.0,0.00027671,2]
[322191757,1712868655915,-228.24830571,0.00027671,2]
[322191758,1712868655927,-582.270009,0.00027671,2]
[322191759,1712868655994,-1548.02168529,0.00027671,2]
[322191760,1712868656005,-501.71590322,0.00027671,2]
[322191761,1712868656799,-500.0,0.00027397,2]
[322191762,1712868656810,-861.55982,0.00027397,2]
[322191763,1712868656903,-61.61018,0.00027397,2]
[322191764,1712868656912,-516.57,0.00027397,2]
[322191765,1712868656921,-500.0,0.00027397,2]
[322191766,1712868656930,-500.0,0.00027397,2]
[322191767,1712868656938,-1007.45409678,0.00027671,2]
[322191768,1712868656947,-130.80057274,0.00027671,2]
[322191769,1712868656963,-856.58840533,0.00027297,2]
[322191770,1712868656986,-9143.41159467,0.00027297,2]
[322191771,1712868656998,-1209.32942726,0.00027671,2]
[322191772,1712868657007,-5039.23,0.00027671,2]
[322191773,1712868657017,-500.0,0.00027671,2]
[322191774,1712868657026,-339.05658807,0.00027671,2]
[322191777,1712868670189,38836.18636001,0.00021,2]
[322191778,1712868683268,1263.68856316,0.00019949,2]
[322191782,1712868744997,20137.1454484,0.00019949,2]
[322191784,1712868759070,6292.22942218,0.00019949,2]
[322191785,1712868783397,154.42,0.0002099,15]
[322191786,1712868783737,150.5,0.0002099,15]
[322191787,1712868783773,150.5,0.0002099,15]
[322191788,1712868784113,150.5,0.0002098,15]
[322191789,1712868784142,150.5,0.0002099,15]
[322191790,1712868784577,150.5,0.0002098,15]
[322191791,1712868784606,150.5,0.0002098,15]
[322191792,1712868784634,150.5,0.0002097,15]
[322191793,1712868785111,150.5,0.0002097,15]
[322191794,1712868785637,284718.45913572,0.000189,2]
[322191795,1712868859183,500.0,0.0002,2]
[322191796,1712868862738,13090.6319589,0.00012,30]
[322191797,1712868904252,150.5,0.0002099,15]
[322191798,1712868904679,150.5,0.0002098,15]
[322191799,1712868905163,150.5,0.0002097,15]
[322191800,1712868974220,282.64895007,0.00019947,2]
[322191801,1712868976472,258.99001207,0.00019178,2]
[322191802,1712868989228,4725.79731875,0.00029588,30]
[322191803,1712868999209,1483.24,0.0002034,2]
[322191804,1712869023578,150.5,0.0002099,15]
[322191805,1712869023650,150.5,0.0002099,15]
[322191806,1712869023999,229.5,0.0002099,15]
[322191807,1712869024162,150.5,0.0002098,15]
[322191808,1712869024604,150.5,0.0002097,15]
[322191809,1712869030634,200.0,0.00020129,2]
[322191810,1712869035726,23900.0,0.00020092,2]
[322191811,1712869041123,150.0,0.00020092,2]
[322191812,1712869042857,3203.09,0.00020053,2]
[322191813,1712869045625,980.45,0.00018135,2]
[322191814,1712869045834,980.45,0.00020399,2]
[322191815,1712869054336,1000.0,0.00020053,2]
[322191816,1712869074871,195.18,0.00020019,2]
[322191817,1712869091991,-200.124264,0.00020785,2]
[322191818,1712869092012,-199.93044363,0.00020785,2]
[322191819,1712869092032,-19462.75421222,0.00020786,2]
[322191820,1712869092053,-137.19108015,0.00020787,2]
[322191821,1712869136610,6728.15,0.00020057,2]
[322191822,1712869137512,548.99,0.00020057,2]
[322191823,1712869142961,150.5,0.0002099,15]
[322191824,1712869143426,150.5,0.0002098,15]
[322191825,1712869143918,150.5,0.0002097,15]
[322191826,1712869165934,2339.1,0.0002015,2]
[322191827,1712869180215,8605.16,0.00020145,2]
[322191828,1712869195589,2197.79,0.00020028,2]
[322191829,1712869264111,200.0,0.00019972,2]
[322191830,1712869265127,150.5,0.0002099,15]
[322191831,1712869265598,150.5,0.0002098,15]
[322191832,1712869266065,182.0,0.0002097,15]
[322191833,1712869273012,161.97,0.00019969,2]
[322191834,1712869284773,3152.34,0.00019969,2]
[322191835,1712869319687,168.18,0.00015974,2]
[322191836,1712869336997,155.98,0.00020118,2]
[322191837,1712869337439,155.98,0.00020188,2]
[322191838,1712869337654,155.98,0.00020258,2]
[322191839,1712869337725,155.98,0.00020327,2]
[322191840,1712869337945,155.98,0.00020397,2]
[322191841,1712869338179,155.98,0.00020467,2]
[322191842,1712869348640,643.79,0.00019939,2]
[322191843,1712869352460,167.96,0.00019939,2]
[322191844,1712869429080,500.0,0.00019936,2]
[322191845,1712869434036,250.0,0.00019931,2]
[322191846,1712869448430,258.15,0.00019941,2]
[322191847,1712869479366,161.52,0.00019941,2]
[322191848,1712869479610,161.52,0.00019974,2]
[322191849,1712869479860,161.52,0.00020007,2]
[322191850,1712869480130,161.52,0.00020041,2]
[322191851,1712869497914,23900.0,0.00019942,2]
[322191852,1712869531894,329.05327036,0.00022279,5]
[322191853,1712869545318,840.0,0.00019943,2]
[322191854,1712869545525,890.18,0.00018025,2]
[322191855,1712869545760,890.18,0.00020289,2]
[322191866,1712869677227,263.24261629,0.0002208,5]
[322191867,1712869694009,5657.24794615,0.0002052,4]
[322191869,1712869719199,1464.86,0.00019937,2]
[322191870,1712869738143,200.0,0.00019937,2]
[322191871,1712869744359,150.5,0.0002099,15]
[322191872,1712869744808,150.5,0.0002098,15]
[322191873,1712869745270,150.5,0.0002097,15]
[322191892,1712869782018,3015.0922,0.00020425,2]
[322191894,1712869822509,210.59409303,0.00022161,5]
[322191906,1712869832711,-1386.6820178,0.00020516,2]
[322191907,1712869832721,-3376.61979186,0.00020516,2]
[322191908,1712869832731,-2355.59207324,0.00020517,2]
[322191909,1712869832742,-531.55753269,0.00020522,2]
[322191910,1712869832751,-155.98,0.00020537,2]
[322191911,1712869832761,-155.98,0.00020607,2]
[322191912,1712869832770,-155.98,0.00020677,2]
[322191913,1712869832780,-155.98,0.00020747,2]
[322191914,1712869832790,-1000.0,0.00020782,2]
[322191915,1712869832801,-499.99,0.00020782,2]
[322191916,1712869832813,-296.92163089,0.00020788,2]
[322191917,1712869832822,-1000.0,0.00020793,2]
[322191918,1712869832832,-150.99,0.00020793,2]
[322191920,1712869832841,-155.98,0.00020817,2]
[322191922,1712869832851,-155.98,0.00020887,2]
[322191924,1712869832860,-3737.67455176,0.00020894,2]
[322191926,1712869832870,-34011.37815422,0.00020895,2]
[322191928,1712869832879,-1000.0,0.00020897,2]
[322191930,1712869832889,-150.99,0.00020897,2]
[322191931,1712869832898,-2080.12763992,0.00020899,2]
[322191933,1712869832907,-154.06513546,0.00020899,2]
[322191935,1712869832916,-305.50474353,0.00020899,2]
[322191937,1712869832924,-168.91956794,0.00020899,2]
[322191939,1712869832934,-165.20597768,0.00020899,2]
[322191941,1712869832943,-605.7089871,0.00020899,2]
[322191943,1712869832952,-179.66021463,0.00020899,2]
[322191945,1712869832961,-7897.58938914,0.00020899,2]
[322191947,1712869832970,-605.7089871,0.00020899,2]
[322191949,1712869832979,-605.7089871,0.000209,2]
[322191951,1712869832988,-605.7089871,0.000209,2]
[322191953,1712869832997,-3471.41144835,0.000209,2]
[322191955,1712869833007,-2305.4696842,0.000209,2]
[322191957,1712869833016,-1594.9130702,0.000209,2]
[322191959,1712869833025,-2025.18141274,0.000209,2]
[322191961,1712869833034,-605.7089871,0.000209,2]
[322191963,1712869833043,-3307.84552288,0.000209,2]
[322191965,1712869833053,-598.87930108,0.000209,2]
[322191967,1712869833062,-222.52650985,0.000209,2]
[322191969,1712869833071,-210.59409304,0.000209,3]
[322191971,1712869833080,-167.36,0.0002095,2]
[322191973,1712869833089,-155.98,0.00020956,2]
[322191975,1712869833098,-343.61711583,0.0002097,2]
[322191977,1712869833107,-1437.09295651,0.00020978,2]
[322191979,1712869833115,-1437.09295651,0.00020978,2]
[322191981,1712869833125,-1437.09295651,0.00020978,2]
[322191983,1712869833134,-1437.09295651,0.00020979,2]
[322191985,1712869833144,-1073.0,0.00020986,2]
[322191987,1712869833152,-1437.09295651,0.00020987,2]
[322191989,1712869833161,-164.9,0.00020988,3]
[322191991,1712869833170,-1437.09295651,0.00020988,2]
[322191993,1712869833181,-1437.09295651,0.00020988,2]
[322191995,1712869833190,-1437.09295651,0.00020988,2]
[322191997,1712869833199,-1437.09295651,0.00020988,2]
[322191999,1712869833208,-1437.09295651,0.00020988,2]
[322192027,1712869833466,-1437.09295651,0.00020988,2]
[322192029,1712869833482,-1437.09295651,0.00020988,2]
[322192031,1712869833491,-1437.09295651,0.00020988,2]
[322192033,1712869833500,-1437.09295651,0.00020988,2]
[322192035,1712869833509,-1437.09295651,0.00020988,2]
[322192037,1712869833518,-1437.09295651,0.00020988,2]
[322192039,1712869833527,-1437.09295651,0.00020988,2]
[322192041,1712869833536,-1437.09295651,0.00020988,2]
[322192043,1712869833545,-1437.09295651,0.00020988,2]
[322192045,1712869833554,-1437.09295651,0.00020988,2]
[322192047,1712869833572,-1437.09295651,0.00020988,2]
[322192049,1712869833581,-1437.09295651,0.00020988,2]
[322192051,1712869833590,-1437.09295651,0.00020988,2]
[322192053,1712869833599,-1437.09295651,0.00020988,2]
[322192055,1712869833608,-1437.09295651,0.00020988,2]
[322192057,1712869833617,-1437.09295651,0.00020988,2]
[322192058,1712869833626,-1437.09295651,0.00020988,2]
[322192060,1712869833635,-1437.09295651,0.00020988,2]
[322192062,1712869833644,-1437.09295651,0.00020988,2]
[322192064,1712869833655,-1437.09295651,0.00020988,2]
[322192066,1712869833664,-155.23,0.00020988,2]
[322192068,1712869833673,-410.23962404,0.00020989,2]
[322192070,1712869833683,-410.23962404,0.00020989,2]
[322192072,1712869833692,-155.23,0.00020989,2]
[322192074,1712869833701,-410.23962404,0.0002099,2]
[322192076,1712869833710,-155.23,0.0002099,2]
[322192078,1712869833719,-200.0,0.0002099,2]
[322192080,1712869833728,-200.0,0.0002099,2]
[322192082,1712869833737,-200.0,0.0002099,2]
[322192084,1712869833746,-200.0,0.0002099,2]
[322192086,1712869833755,-163.0,0.0002099,2]
[322192089,1712869833764,-157.041206,0.00020995,3]
[322192091,1712869833774,-157.041206,0.00020996,3]
[322192093,1712869833783,-157.041206,0.00020997,3]
[322192095,1712869833792,-1296.33667789,0.00020997,2]
[322192097,1712869833802,-261.54416179,0.00020997,2]
[322192099,1712869833811,-185.78135859,0.00020997,2]
[322192101,1712869833819,-166.16697027,0.00020997,2]
[322192103,1712869833828,-156.0026956,0.00020997,3]
[322192105,1712869833837,-648.23502441,0.00020997,2]
[322192107,1712869833846,-156.29477005,0.00020997,2]
[322192109,1712869833855,-325.09234905,0.00020997,2]
[322192110,1712869833864,-233.39577978,0.00020998,2]
[322192111,1712869833873,-627.73692746,0.00020998,2]
[322192112,1712869833882,-181.06295931,0.00020998,2]
[322192113,1712869833891,-644.54423816,0.00020998,2]
[322192114,1712869833900,-2173.34818369,0.00020998,2]
[322192115,1712869833909,-2157.71429304,0.00020998,2]
[322192116,1712869833929,-446.46685544,0.00020998,2]
[322192117,1712869833938,-236.9592238,0.00020998,2]
[322192118,1712869833946,-36.2650042,0.00020998,2]
[322192125,1712869834001,-3052.8916343,0.00020998,2]
[322192127,1712869834010,-155.0,0.00020998,2]
[322192129,1712869834019,-2150.68506891,0.00020998,2]
[322192131,1712869834029,-404.73102028,0.00020998,2]
[322192133,1712869834038,-342.8148006,0.00020998,2]
[322192135,1712869834047,-550.75005717,0.00020998,2]
[322192137,1712869834056,-4040.22287189,0.00020998,2]
[322192139,1712869834066,-196.41457958,0.00020998,2]
[322192142,1712869834075,-3862.26830008,0.00020998,2]
[322192144,1712869834085,-442.58318375,0.00020998,2]
[322192146,1712869834094,-155.0,0.00020998,2]
[322192148,1712869834103,-160.1828942,0.00020998,2]
[322192150,1712869834112,-155.0,0.00020998,2]
[322192152,1712869834121,-265.27605954,0.00020998,2]
[322192154,1712869834130,-1089.65662145,0.00020998,2]
[322192156,1712869834139,-1104.6963687,0.00020998,2]
[322192158,1712869834148,-785.52907082,0.00020998,2]
[322192160,1712869834157,-418.13620905,0.00020998,2]
[322192162,1712869834166,-155.08538378,0.00020998,2]
[322192164,1712869834176,-304.46832005,0.00020998,2]
[322192166,1712869834185,-155.0,0.00020998,2]
[322192167,1712869834195,-285.46840956,0.00020998,2]
[322192169,1712869834205,-633.49451801,0.00020998,2]
[322192172,1712869834215,-1476.46668772,0.00020998,2]
[322192174,1712869834225,-408.15974753,0.00020998,2]
[322192176,1712869834236,-267.62055149,0.00020998,2]
[322192178,1712869834247,-245.08709582,0.00020998,2]
[322192180,1712869834257,-202.85165673,0.00020998,2]
[322192182,1712869834267,-157.041206,0.00020998,3]
[322192184,1712869834277,-199.80793844,0.00020998,2]
[322192186,1712869834286,-5070.38425902,0.00020998,2]
[322192188,1712869834296,-704.91869228,0.00020998,2]
[322192190,1712869834305,-94353.97542845,0.00020998,2]
[322192192,1712869834315,-931.01335225,0.00020999,2]
[322192194,1712869834324,-1000.0,0.00020999,2]
[322192196,1712869834334,-121131.04711524,0.00020999,2]
[322192198,1712869834347,-51056.61133867,0.00020999,2]
[322192201,1712869834369,-2972.7695936,0.00020999,2]
[322192214,1712869838228,-638.83492,0.00020996,2]
[322192269,1712869838897,-3922.82508,0.00020996,2]
[322192272,1712869838908,-45701.5031787,0.00020999,2]
[322192281,1712869838990,-3090.8123531,0.00020999,2]
[322192298,1712869839132,-358.33485164,0.00020999,2]
[322192300,1712869839144,-1438250.29192417,0.00020999,2]
[322192302,1712869839153,-500.0,0.00020999,2]
[322192304,1712869839163,-498.27263747,0.00020999,2]
[322192306,1712869839172,-500.0,0.00020999,2]
[322192308,1712869839181,-500.0,0.00020999,2]
[322192310,1712869839190,-500.0,0.00020999,2]
[322192312,1712869839200,-500.0,0.00020999,2]
[322192314,1712869839209,-482.80060139,0.00020999,2]
[322192316,1712869839217,-590.13667406,0.00021,2]
[322192318,1712869839226,-6384393.11005535,0.00021,2]
[322192320,1712869839236,-650.94,0.00021,2]
[322192322,1712869839246,-371.77,0.00021,2]
[322192324,1712869839255,-650215.10672745,0.00021,2]
[322192326,1712869839265,-1047.36643668,0.00021,2]
[322192328,1712869839274,-155.98,0.00021026,2]
[322192329,1712869839283,-155.98,0.00021096,2]
[322192330,1712869839293,-155.98,0.00021166,2]
[322192331,1712869839302,-300.0,0.00021314,2]
[322192332,1712869839312,-154.06513536,0.00021533,2]
[322192333,1712869839321,-305.50474343,0.00021615,2]
[322192334,1712869839330,-7897.58938913,0.00021701,2]
[322192335,1712869839340,-3471.41144835,0.00021731,2]
[322192336,1712869839351,-2080.12763989,0.00021756,2]
[322192338,1712869839360,-167.36,0.00021815,2]
[322192340,1712869839369,-2305.46968417,0.00021853,2]
[322192342,1712869839378,-250.0,0.00021918,2]
[322192344,1712869839389,-250.0,0.00021918,2]
[322192346,1712869839398,-367453.84521627,0.00022,2]
[322192348,1712869839407,-783.81607988,0.00022,2]
[322192350,1712869839416,-175.53,0.00022066,2]
[322192352,1712869839426,-154.06513536,0.00022167,2]
[322192354,1712869839438,-305.50474343,0.00022331,2]
[322192356,1712869839447,-840.0,0.00022435,2]
[322192358,1712869839457,-331.380326,0.00022466,2]
[322192360,1712869839466,-7897.58938913,0.00022503,2]
[322192362,1712869839475,-890.18,0.00022552,2]
[322192364,1712869839484,-3471.41144835,0.00022561,2]
[322192366,1712869839493,-165.20597766,0.0002258,2]
[322192368,1712869839502,-2080.12763989,0.00022614,2]
[322192370,1712869839510,-200.0,0.00022645,2]
[322192372,1712869839519,-1464.86,0.00022676,2]
[322192374,1712869839529,-167.36,0.00022679,2]
[322192376,1712869839538,-300.0,0.00022684,2]
[322192378,1712869839547,-154.06513536,0.00022802,2]
[322192380,1712869839556,-2305.46968417,0.00022806,2]
[322192382,1712869839565,-175.53,0.00022846,2]
[322192384,1712869839575,-307.11461416,0.00023,2]
[322192386,1712869839584,-305.50474343,0.00023047,2]
[322192388,1712869839593,-1000.0,0.00023288,2]
[322192390,1712869839602,-1000.0,0.00023288,2]
[322192392,1712869839611,-1000.0,0.00023288,2]
[322192394,1712869839620,-1000.0,0.00023288,2]
[322192396,1712869839629,-1000.0,0.00023288,2]
[322192398,1712869839637,-1000.0,0.00023288,2]
[322192400,1712869839646,-1000.0,0.00023288,2]
[322192402,1712869839655,-1000.0,0.00023288,2]
[322192404,1712869839665,-1000.0,0.00023288,2]
[322192406,1712869839673,-1000.0,0.00023288,2]
[322192408,1712869839682,-1000.0,0.00023288,2]
[322192410,1712869839691,-1000.0,0.00023288,2]
[322192412,1712869839700,-1000.0,0.00023288,2]
[322192414,1712869839711,-1000.0,0.00023288,2]
[322192416,1712869839719,-1000.0,0.00023288,2]
[322192418,1712869839728,-1000.0,0.00023288,2]
[322192420,1712869839737,-1000.0,0.00023288,2]
[322192422,1712869839746,-1000.0,0.00023288,2]
[322192424,1712869839755,-1000.0,0.00023288,2]
[322192426,1712869839764,-1000.0,0.00023288,2]
[322192428,1712869839773,-1000.0,0.00023288,2]
[322192430,1712869839782,-1000.0,0.00023288,2]
[322192432,1712869839791,-1000.0,0.00023288,2]
[322192434,1712869839799,-1000.0,0.00023288,2]
[322192436,1712869839808,-1000.0,0.00023288,2]
[322192438,1712869839818,-1000.0,0.00023288,2]
[322192440,1712869839827,-1000.0,0.00023288,2]
[322192461,1712869839836,-1000.0,0.00023288,2]
[322192468,1712869840059,-1000.0,0.00023288,2]
[322192469,1712869840068,-1000.0,0.00023288,2]
[322192472,1712869840078,-1000.0,0.00023288,2]
[322192474,1712869840087,-1000.0,0.00023288,2]
[322192476,1712869840096,-1000.0,0.00023288,2]
[322192478,1712869840105,-1000.0,0.00023288,2]
[322192480,1712869840115,-1000.0,0.00023288,2]
[322192481,1712869840124,-1000.0,0.00023288,2]
[322192484,1712869840134,-1000.0,0.00023288,2]
[322192486,1712869840144,-1000.0,0.00023288,2]
[322192488,1712869840154,-1000.0,0.00023288,2]
[322192490,1712869840163,-1000.0,0.00023288,2]
[322192492,1712869840173,-1000.0,0.00023288,2]
[322192494,1712869840183,-1000.0,0.00023288,2]
[322192496,1712869840192,-1000.0,0.00023288,2]
[322192498,1712869840202,-1000.0,0.00023288,2]
[322192499,1712869840213,-1000.0,0.00023288,2]
[322192501,1712869840222,-1000.0,0.00023288,2]
[322192502,1712869840232,-1000.0,0.00023288,2]
[322192503,1712869840242,-1000.0,0.00023288,2]
[322192504,1712869840253,-1000.0,0.00023288,2]
[322192505,1712869840263,-1000.0,0.00023288,2]
[322192506,1712869840273,-1000.0,0.00023288,2]
[322192507,1712869840284,-1000.0,0.00023288,2]
[322192508,1712869840295,-1000.0,0.00023288,2]
[322192509,1712869840304,-1000.0,0.00023288,2]
[322192510,1712869840313,-1000.0,0.00023288,2]
[322192511,1712869840323,-1000.0,0.00023288,2]
[322192512,1712869840332,-1000.0,0.00023288,2]
[322192513,1712869840342,-1000.0,0.00023288,2]
[322192514,1712869840350,-1000.0,0.00023288,2]
[322192515,1712869840360,-1000.0,0.00023288,2]
[322192516,1712869840369,-1000.0,0.00023288,2]
[322192517,1712869840379,-1000.0,0.00023288,2]
[322192518,1712869840388,-1000.0,0.00023288,2]
[322192519,1712869840397,-1000.0,0.00023288,2]
[322192520,1712869840406,-1000.0,0.00023288,2]
[322192521,1712869840415,-1000.0,0.00023288,2]
[322192522,1712869840424,-1000.0,0.00023288,2]
[322192523,1712869840434,-1000.0,0.00023288,2]
[322192524,1712869840444,-1000.0,0.00023288,2]
[322192525,1712869840453,-1000.0,0.00023288,2]
[322192526,1712869840462,-1000.0,0.00023288,2]
[322192527,1712869840472,-1000.0,0.00023288,2]
[322192528,1712869840481,-1000.0,0.00023288,2]
[322192529,1712869840490,-1000.0,0.00023288,2]
[322192530,1712869840499,-1000.0,0.00023288,2]
[322192531,1712869840508,-1000.0,0.00023288,2]
[322192532,1712869840517,-1000.0,0.00023288,2]
[322192533,1712869840526,-1000.0,0.00023288,2]
[322192534,1712869840535,-1000.0,0.00023288,2]
[322192535,1712869840544,-1000.0,0.00023288,2]
[322192536,1712869840553,-1000.0,0.00023288,2]
[322192537,1712869840562,-1000.0,0.00023288,2]
[322192538,1712869840571,-1000.0,0.00023288,2]
[322192539,1712869840580,-1000.0,0.00023288,2]
[322192540,1712869840589,-1000.0,0.00023288,2]
[322192541,1712869840598,-1000.0,0.00023288,2]
[322192542,1712869840607,-1000.0,0.00023288,2]
[322192543,1712869840616,-1000.0,0.00023288,2]
[322192544,1712869840625,-1000.0,0.00023288,2]
[322192545,1712869840634,-1000.0,0.00023288,2]
[322192546,1712869840642,-1040.0,0.00023288,2]
[322192547,1712869840651,-331.380326,0.00023288,2]
[322192548,1712869840660,-7897.58938913,0.00023306,2]
[322192549,1712869840670,-3471.41144835,0.00023392,2]
[322192550,1712869840681,-210.59409303,0.00023422,7]
[322192551,1712869840692,-154.06513536,0.00023436,2]
[322192552,1712869840702,-2080.12763989,0.00023471,2]
[322192553,1712869840712,-167.36,0.00023543,2]
[322192554,1712869840721,-175.53,0.00023626,2]
[322192555,1712869840730,-2305.46968417,0.00023759,2]
[322192556,1712869840739,-305.50474343,0.00023762,2]
[322192557,1712869840749,-154.06513536,0.0002407,2]
[322192558,1712869840758,-331.380326,0.0002411,2]
[322192559,1712869840769,-3471.41144835,0.00024222,2]
[322192560,1712869840779,-165.20597766,0.00024262,2]
[322192561,1712869840789,-357.95,0.00024263,2]
[322192562,1712869840798,-2080.12763989,0.00024328,2]
[322192563,1712869840808,-1594.91307018,0.00024373,2]
[322192564,1712869840818,-2025.18141273,0.00024373,2]
[322192565,1712869840828,-3307.84552287,0.00024373,2]
[322192566,1712869840839,-598.87930107,0.00024373,2]
[322192567,1712869840849,-175.53,0.00024407,2]
[322192568,1712869840859,-167.36,0.00024408,2]
[322192569,1712869840869,-305.50474343,0.00024478,2]
[322192570,1712869840878,-11253.91,0.00024657,4]
[322192571,1712869840889,-11253.91,0.00024657,4]
[322192572,1712869840898,-11253.91,0.00024657,4]
[322192573,1712869840907,-11253.91,0.00024657,4]
[322192574,1712869840917,-11253.91,0.00024657,4]
[322192575,1712869840927,-11253.91,0.00024657,4]
[322192576,1712869840936,-11253.91,0.00024657,4]
[322192577,1712869840946,-11253.91,0.00024657,4]
[322192578,1712869840955,-11253.91,0.00024657,4]
[322192579,1712869840964,-11253.91,0.00024657,4]
[322192580,1712869840973,-11253.91,0.00024657,4]
[322192581,1712869840983,-11253.91,0.00024657,4]
[322192582,1712869840991,-11253.91,0.00024657,4]
[322192583,1712869841001,-11253.91,0.00024657,4]
[322192584,1712869841010,-11253.91,0.00024657,4]
[322192585,1712869841019,-11253.91,0.00024657,4]
[322192586,1712869841028,-11253.91,0.00024657,4]
[322192587,1712869841038,-11253.91,0.00024657,4]
[322192588,1712869841047,-11253.91,0.00024657,4]
[322192589,1712869841056,-11253.91,0.00024657,4]
[322192590,1712869841066,-11253.91,0.00024657,4]
[322192591,1712869841075,-11253.91,0.00024657,4]
[322192592,1712869841083,-11253.91,0.00024657,4]
[322192593,1712869841092,-11254.08032071,0.00024657,4]
[322192594,1712869841102,-210.59409303,0.00024682,9]
[322192595,1712869841111,-154.06513536,0.00024704,2]
[322192596,1712869841120,-2305.46968417,0.00024712,2]
[322192597,1712869841129,-2014.28390047,0.000248,2]
[322192598,1712869841138,-890.18,0.00024816,2]
[322192599,1712869841147,-840.0,0.00024928,2]
[322192600,1712869841157,-331.380326,0.00024932,2]
[322192601,1712869841166,-161.97,0.00024961,2]
[322192602,1712869841175,-269.39941821,0.00025,2]
[322192603,1712869841184,-218.58382044,0.00025,2]
[322192604,1712869841193,-1361.79189436,0.00025,2]